[Event "*** Titled Tuesday Blitz"]
[Site "Chess.com"]
[Date "2021.02.16"]
[Round "4"]
[White "AlexTriapishko"]
[Black "CSB7"]
[Result "1-0"]
[WhiteElo "2830"]
[BlackElo "2533"]
[TimeControl "180+1"]
[EndTime "10:43:08 PST"]
[Termination "AlexTriapishko won by resignation"]

1. d4 {[%clk 0:03:00.9]} 1... Nf6 {[%clk 0:02:58.5]} 2. c4 {[%clk 0:03:01.4]}
2... g6 {[%clk 0:02:58.7]} 3. Nc3 {[%clk 0:03:01.8]} 3... d5 {[%clk 0:02:58.8]}
4. cxd5 {[%clk 0:03:00.6]} 4... Nxd5 {[%clk 0:02:59.7]} 5. e4 {[%clk 0:03:01.2]}
5... Nxc3 {[%clk 0:02:58.5]} 6. bxc3 {[%clk 0:03:02.1]} 6... Bg7 {[%clk
0:02:59]} 7. Qa4+ {[%clk 0:02:56.9]} 7... Qd7 {[%clk 0:02:56.3]} 8. Bb5 {[%clk
0:02:55.7]} 8... c6 {[%clk 0:02:55.7]} 9. Be2 {[%clk 0:02:55.9]} 9... O-O {[%clk
0:02:52.1]} 10. Qa3 {[%clk 0:02:52.1]} 10... b6 {[%clk 0:02:48.4]} 11. Nf3
{[%clk 0:02:50.9]} 11... Bb7 {[%clk 0:02:48.9]} 12. Be3 {[%clk 0:02:40.8]} 12...
c5 {[%clk 0:02:42.2]} 13. d5 {[%clk 0:02:41]} 13... e6 {[%clk 0:02:41.9]} 14.
Rd1 {[%clk 0:02:40.8]} 14... exd5 {[%clk 0:02:41.6]} 15. exd5 {[%clk 0:02:37.7]}
15... Qd6 {[%clk 0:02:28.1]} 16. O-O {[%clk 0:02:21.5]} 16... Nd7 {[%clk
0:02:27.5]} 17. c4 {[%clk 0:02:20.2]} 17... Rfe8 {[%clk 0:02:23.9]} 18. Rfe1
{[%clk 0:02:19.3]} 18... Ne5 {[%clk 0:02:12.5]} 19. g3 {[%clk 0:01:56.8]} 19...
Bc8 {[%clk 0:01:52.6]} 20. Bf4 {[%clk 0:01:32.2]} 20... Bd7 {[%clk 0:01:48.4]}
21. Ng5 {[%clk 0:01:10]} 21... Bf5 {[%clk 0:01:26.9]} 22. g4 {[%clk 0:01:08.7]}
22... Bd7 {[%clk 0:01:22.2]} 23. Ne4 {[%clk 0:00:58.2]} 23... Qe7 {[%clk
0:01:15.5]} 24. Qg3 {[%clk 0:00:49]} 24... Ba4 {[%clk 0:00:53.9]} 25. Rd2 {[%clk
0:00:30]} 25... Nc6 {[%clk 0:00:42.4]} 26. Nd6 {[%clk 0:00:16.6]} 26... Nd4
{[%clk 0:00:42.6]} 27. Nxe8 {[%clk 0:00:17]} 27... Rxe8 {[%clk 0:00:43.2]} 28.
Be3 {[%clk 0:00:17.3]} 28... Be5 {[%clk 0:00:27.3]} 29. Qh3 {[%clk 0:00:14.1]}
29... Nc2 {[%clk 0:00:26.5]} 30. Rxc2 {[%clk 0:00:10.7]} 30... Bxc2 {[%clk
0:00:27.4]} 31. Bf1 {[%clk 0:00:10.3]} 31... Qd8 {[%clk 0:00:22.5]} 32. Bd2
{[%clk 0:00:06.4]} 32... Ba4 {[%clk 0:00:20.5]} 33. Qa3 {[%clk 0:00:04.3]} 33...
Qd7 {[%clk 0:00:17.7]} 34. h3 {[%clk 0:00:04]} 34... Bd6 {[%clk 0:00:17.6]} 35.
Rxe8+ {[%clk 0:00:03.6]} 35... Qxe8 {[%clk 0:00:18.5]} 36. Qe3 {[%clk
0:00:03.5]} 36... Qxe3 {[%clk 0:00:17.9]} 37. fxe3 {[%clk 0:00:04.4]} 37... Bd7
{[%clk 0:00:16.8]} 38. Bc3 {[%clk 0:00:03.7]} 38... Kf8 {[%clk 0:00:15.5]} 39.
e4 {[%clk 0:00:03.1]} 39... Bf4 {[%clk 0:00:13]} 40. e5 {[%clk 0:00:03.6]} 40...
Ke7 {[%clk 0:00:13.2]} 41. Be2 {[%clk 0:00:03.6]} 41... a6 {[%clk 0:00:10.5]}
42. Kf2 {[%clk 0:00:02.8]} 42... b5 {[%clk 0:00:11.1]} 43. Kf3 {[%clk
0:00:02.3]} 43... Bc1 {[%clk 0:00:11.2]} 44. Ke4 {[%clk 0:00:02.5]} 44... h6
{[%clk 0:00:06.6]} 45. Be1 {[%clk 0:00:02.3]} 45... Bg5 {[%clk 0:00:05.6]} 46.
h4 {[%clk 0:00:02.2]} 46... Bd2 {[%clk 0:00:05.1]} 47. h5 {[%clk 0:00:02.8]}
47... gxh5 {[%clk 0:00:04.7]} 48. Bxd2 {[%clk 0:00:02.1]} 48... hxg4 {[%clk
0:00:02.9]} 49. d6+ {[%clk 0:00:03]} 49... Ke6 {[%clk 0:00:03.1]} 50. cxb5
{[%clk 0:00:03.9]} 50... axb5 {[%clk 0:00:03]} 51. Bd1 {[%clk 0:00:03.8]} 51...
Bc6+ {[%clk 0:00:02.9]} 52. Kf4 {[%clk 0:00:03.6]} 52... h5 {[%clk 0:00:03.4]}
53. Be1 {[%clk 0:00:02.7]} 53... Bd5 {[%clk 0:00:02.8]} 54. Bh4 {[%clk
0:00:02.6]} 54... Bxa2 {[%clk 0:00:01.8]} 55. Bc2 {[%clk 0:00:03.2]} 55... c4
{[%clk 0:00:02]} 56. Bf5+ {[%clk 0:00:03.7]} 56... Kd5 {[%clk 0:00:02.6]} 57. d7
{[%clk 0:00:04.6]} 57... Kc5 {[%clk 0:00:03]} 58. d8=Q {[%clk 0:00:05.5]} 58...
Kb4 {[%clk 0:00:03.5]} 59. Qd6+ {[%clk 0:00:05.8]} 59... Kb3 {[%clk 0:00:03.9]}
60. Be7 {[%clk 0:00:06.7]} 1-0

[Event "*** Titled Tuesday Blitz"]
[Site "Chess.com"]
[Date "2021.02.16"]
[Round "4"]
[White "bascheyaro"]
[Black "awesomevishesh"]
[Result "1-0"]
[WhiteElo "2703"]
[BlackElo "2513"]
[TimeControl "180+1"]
[EndTime "10:43:10 PST"]
[Termination "bascheyaro won on time"]

1. d4 {[%clk 0:03:00.9]} 1... Nf6 {[%clk 0:02:56.4]} 2. c4 {[%clk 0:03:01.1]}
2... g6 {[%clk 0:02:55.7]} 3. Nf3 {[%clk 0:03:01.6]} 3... Bg7 {[%clk 0:02:47.2]}
4. Nc3 {[%clk 0:03:00.9]} 4... d6 {[%clk 0:02:47.5]} 5. g3 {[%clk 0:03:01.2]}
5... O-O {[%clk 0:02:47.7]} 6. Bg2 {[%clk 0:03:01.6]} 6... c6 {[%clk 0:02:48.2]}
7. O-O {[%clk 0:03:01.8]} 7... Bf5 {[%clk 0:02:48.5]} 8. b4 {[%clk 0:03:01.4]}
8... Ne4 {[%clk 0:02:40.5]} 9. Bb2 {[%clk 0:02:59.9]} 9... Nxc3 {[%clk 0:02:36]}
10. Bxc3 {[%clk 0:03:00.8]} 10... Be4 {[%clk 0:02:36.1]} 11. a4 {[%clk
0:02:59.9]} 11... c5 {[%clk 0:02:31.8]} 12. e3 {[%clk 0:02:57.6]} 12... Nc6
{[%clk 0:02:09.8]} 13. Qd2 {[%clk 0:02:54.3]} 13... cxb4 {[%clk 0:02:08.8]} 14.
Bxb4 {[%clk 0:02:53.9]} 14... Nxb4 {[%clk 0:02:08.7]} 15. Qxb4 {[%clk
0:02:54.8]} 15... Qc7 {[%clk 0:02:05.8]} 16. Nd2 {[%clk 0:02:52.4]} 16... Bxg2
{[%clk 0:02:04.3]} 17. Kxg2 {[%clk 0:02:53.3]} 17... e5 {[%clk 0:01:59.3]} 18.
d5 {[%clk 0:02:52.8]} 18... f5 {[%clk 0:01:44.9]} 19. e4 {[%clk 0:02:51.5]}
19... Bh6 {[%clk 0:01:39.2]} 20. exf5 {[%clk 0:02:51.1]} 20... Bxd2 {[%clk
0:01:37]} 21. Qxd2 {[%clk 0:02:52]} 21... Rxf5 {[%clk 0:01:32.9]} 22. Rac1
{[%clk 0:02:49.1]} 22... Qc5 {[%clk 0:01:22.6]} 23. Qe3 {[%clk 0:02:49.2]} 23...
Rc8 {[%clk 0:01:21.9]} 24. Rc3 {[%clk 0:02:17.7]} 24... b6 {[%clk 0:01:13.9]}
25. Rb1 {[%clk 0:02:15.2]} 25... Rf7 {[%clk 0:01:07.3]} 26. Rb5 {[%clk
0:02:08.2]} 26... Qxe3 {[%clk 0:00:57.8]} 27. fxe3 {[%clk 0:02:09.1]} 27... Rfc7
{[%clk 0:00:55.6]} 28. a5 {[%clk 0:02:08.9]} 28... bxa5 {[%clk 0:00:41.5]} 29.
Rxa5 {[%clk 0:02:08.9]} 29... Kf7 {[%clk 0:00:22.1]} 30. Kf3 {[%clk 0:02:03.6]}
30... Ke7 {[%clk 0:00:21.5]} 31. Ra4 {[%clk 0:01:48.5]} 31... Rb8 {[%clk
0:00:21.1]} 32. Kg4 {[%clk 0:01:39.5]} 32... Rb2 {[%clk 0:00:16.4]} 33. h4
{[%clk 0:01:39.5]} 33... Kf6 {[%clk 0:00:13.6]} 34. Ra6 {[%clk 0:01:38.4]} 34...
h5+ {[%clk 0:00:12.9]} 35. Kh3 {[%clk 0:01:38.1]} 35... Rb6 {[%clk 0:00:09.8]}
36. Ra5 {[%clk 0:01:35.4]} 36... Kf5 {[%clk 0:00:06.5]} 37. Ra4 {[%clk
0:01:21.7]} 37... Rb2 {[%clk 0:00:05.5]} 38. c5 {[%clk 0:01:22]} 38... dxc5
{[%clk 0:00:03.4]} 39. e4+ {[%clk 0:01:22.4]} 39... Kf6 {[%clk 0:00:03.7]} 40.
Ra6+ {[%clk 0:01:20.7]} 40... Rb6 {[%clk 0:00:04.1]} 41. Rca3 {[%clk 0:01:15.2]}
41... Rxa6 {[%clk 0:00:04.4]} 42. Rxa6+ {[%clk 0:01:15.9]} 42... Kf7 {[%clk
0:00:05.3]} 43. Kg2 {[%clk 0:01:11]} 43... c4 {[%clk 0:00:05.6]} 44. d6 {[%clk
0:01:10.9]} 44... Rd7 {[%clk 0:00:05.6]} 45. Rc6 {[%clk 0:01:10.7]} 45... Ke6
{[%clk 0:00:06]} 46. Rxc4 {[%clk 0:01:10.9]} 46... Kxd6 {[%clk 0:00:06.5]} 47.
Ra4 {[%clk 0:01:10.4]} 47... Kc5 {[%clk 0:00:06.4]} 48. Ra5+ {[%clk 0:01:10.2]}
48... Kd4 {[%clk 0:00:06.7]} 49. Ra4+ {[%clk 0:01:09.8]} 49... Kc3 {[%clk
0:00:06.7]} 50. Kf3 {[%clk 0:01:09.8]} 50... Kb3 {[%clk 0:00:07]} 51. Ra5 {[%clk
0:01:10.2]} 51... Re7 {[%clk 0:00:06.3]} 52. Ke3 {[%clk 0:01:10.1]} 52... Kb4
{[%clk 0:00:06.4]} 53. Ra6 {[%clk 0:01:10.4]} 53... Kb5 {[%clk 0:00:06.6]} 54.
Rxg6 {[%clk 0:01:10.6]} 54... a5 {[%clk 0:00:07]} 55. Kd3 {[%clk 0:01:06.3]}
55... a4 {[%clk 0:00:05]} 56. Kc3 {[%clk 0:01:06.6]} 56... Ra7 {[%clk
0:00:02.8]} 57. Kb2 {[%clk 0:01:05.7]} 57... Kc4 {[%clk 0:00:02.8]} 58. Rg5
{[%clk 0:00:57.5]} 58... Kd4 {[%clk 0:00:02.8]} 59. Rxh5 {[%clk 0:00:57.5]}
59... a3+ {[%clk 0:00:03.3]} 60. Ka2 {[%clk 0:00:57.6]} 60... Kxe4 {[%clk
0:00:04.2]} 61. g4 {[%clk 0:00:57.1]} 61... Kf4 {[%clk 0:00:04.2]} 62. g5 {[%clk
0:00:57.6]} 62... e4 {[%clk 0:00:04.1]} 63. g6 {[%clk 0:00:57.8]} 63... e3
{[%clk 0:00:04.4]} 64. Rh7 {[%clk 0:00:57.7]} 64... Ra8 {[%clk 0:00:04.6]} 65.
h5 {[%clk 0:00:52.8]} 65... e2 {[%clk 0:00:04.2]} 66. Re7 {[%clk 0:00:52.5]}
66... Kf3 {[%clk 0:00:03]} 67. h6 {[%clk 0:00:51.4]} 67... Ra7 {[%clk
0:00:02.7]} 68. Rxe2 {[%clk 0:00:48.2]} 68... Kxe2 {[%clk 0:00:02.2]} 69. g7
{[%clk 0:00:48.7]} 1-0

[Event "*** Titled Tuesday Blitz"]
[Site "Chess.com"]
[Date "2021.02.16"]
[Round "4"]
[White "drragnar1"]
[Black "kikydu96"]
[Result "1/2-1/2"]
[WhiteElo "2412"]
[BlackElo "2611"]
[TimeControl "180+1"]
[EndTime "10:43:15 PST"]
[Termination "Game drawn by agreement"]

1. g3 {[%clk 0:03:00.1]} 1... e5 {[%clk 0:02:57.5]} 2. c4 {[%clk 0:02:59.6]}
2... Nc6 {[%clk 0:02:55.8]} 3. Bg2 {[%clk 0:02:59.7]} 3... Bc5 {[%clk
0:02:56.1]} 4. Nc3 {[%clk 0:02:59.7]} 4... a6 {[%clk 0:02:56.1]} 5. d3 {[%clk
0:02:58.1]} 5... d6 {[%clk 0:02:55]} 6. Nf3 {[%clk 0:02:58.3]} 6... f5 {[%clk
0:02:53.7]} 7. Nd5 {[%clk 0:02:52.5]} 7... Nf6 {[%clk 0:02:48.9]} 8. Bg5 {[%clk
0:02:49.2]} 8... h6 {[%clk 0:02:47.3]} 9. Bxf6 {[%clk 0:02:48.4]} 9... gxf6
{[%clk 0:02:48.2]} 10. a3 {[%clk 0:02:38.3]} 10... Be6 {[%clk 0:02:45.7]} 11.
Qc2 {[%clk 0:02:25.1]} 11... Bxd5 {[%clk 0:02:41]} 12. cxd5 {[%clk 0:02:24.3]}
12... Nd4 {[%clk 0:02:37]} 13. Nxd4 {[%clk 0:02:19]} 13... Bxd4 {[%clk
0:02:37.9]} 14. Rc1 {[%clk 0:02:04.8]} 14... Bb6 {[%clk 0:02:35.5]} 15. Bh3
{[%clk 0:01:59.5]} 15... Qd7 {[%clk 0:02:30.2]} 16. e4 {[%clk 0:01:53]} 16...
Qg7 {[%clk 0:02:26.5]} 17. Bxf5 {[%clk 0:01:50.7]} 17... h5 {[%clk 0:02:26.7]}
18. h4 {[%clk 0:01:36.3]} 18... Rg8 {[%clk 0:02:14.6]} 19. Qe2 {[%clk
0:01:30.5]} 19... Qh6 {[%clk 0:02:13]} 20. Rc2 {[%clk 0:01:24.2]} 20... Ke7
{[%clk 0:02:11.8]} 21. Rf1 {[%clk 0:01:17.7]} 21... a5 {[%clk 0:01:59.8]} 22.
Qd2 {[%clk 0:01:17.2]} 22... Qg7 {[%clk 0:01:50.9]} 23. Be6 {[%clk 0:01:11.2]}
23... a4 {[%clk 0:01:44.8]} 24. Ke2 {[%clk 0:01:08.3]} 24... Rgf8 {[%clk
0:01:34.2]} 25. Kf3 {[%clk 0:01:03.2]} 25... f5 {[%clk 0:01:26.2]} 26. Bxf5
{[%clk 0:01:02.2]} 26... Rxf5+ {[%clk 0:01:09.5]} 27. exf5 {[%clk 0:01:03.1]}
27... Rf8 {[%clk 0:01:05.2]} 28. Qg5+ {[%clk 0:00:58.3]} 28... Qxg5 {[%clk
0:01:04.8]} 29. hxg5 {[%clk 0:00:59.2]} 29... Rxf5+ {[%clk 0:01:05.5]} 30. Kg2
{[%clk 0:00:54.9]} 30... Rxg5 {[%clk 0:01:05.8]} 31. Rh1 {[%clk 0:00:54]} 31...
Kf6 {[%clk 0:01:02.5]} 32. Rh4 {[%clk 0:00:54.2]} 32... Kg6 {[%clk 0:01:01.6]}
33. Rxa4 {[%clk 0:00:54.3]} 33... Rf5 {[%clk 0:00:57.8]} 34. Re4 {[%clk
0:00:50.5]} 34... Rf8 {[%clk 0:00:55]} 35. a4 {[%clk 0:00:50]} 35... Ra8 {[%clk
0:00:54.8]} 36. b3 {[%clk 0:00:46.8]} 36... Ra5 {[%clk 0:00:54.9]} 37. Rc3
{[%clk 0:00:32]} 37... Rxd5 {[%clk 0:00:54.6]} 38. b4 {[%clk 0:00:31.5]} 38...
c6 {[%clk 0:00:50.4]} 39. a5 {[%clk 0:00:28.2]} 39... Bd4 {[%clk 0:00:44.9]} 40.
Rb3 {[%clk 0:00:28]} 40... Rb5 {[%clk 0:00:45]} 41. f4 {[%clk 0:00:28.4]} 41...
c5 {[%clk 0:00:44]} 42. Kf3 {[%clk 0:00:25.2]} 42... Rxb4 {[%clk 0:00:35.4]} 43.
Rxb4 {[%clk 0:00:24.7]} 43... cxb4 {[%clk 0:00:36.3]} 44. Ke2 {[%clk 0:00:19]}
44... b3 {[%clk 0:00:36.1]} 45. Kd1 {[%clk 0:00:18.3]} 45... b2 {[%clk
0:00:33.7]} 46. Kc2 {[%clk 0:00:18.4]} 46... Kf5 {[%clk 0:00:32.6]} 47. fxe5
{[%clk 0:00:18.2]} 47... dxe5 {[%clk 0:00:33.5]} 48. Rh4 {[%clk 0:00:18.6]}
48... Kg5 {[%clk 0:00:33]} 49. Kb1 {[%clk 0:00:18.4]} 49... Bf2 {[%clk
0:00:30.7]} 50. Rb4 {[%clk 0:00:14.3]} 50... Be1 {[%clk 0:00:28.4]} 51. Rb5
{[%clk 0:00:14]} 51... Kg4 {[%clk 0:00:25.4]} 52. Rxe5 {[%clk 0:00:14]} 52...
Bxg3 {[%clk 0:00:23.2]} 53. Rb5 {[%clk 0:00:11.7]} 53... Be1 {[%clk 0:00:21.6]}
54. Kxb2 {[%clk 0:00:09.3]} 54... h4 {[%clk 0:00:22.1]} 55. Rxb7 {[%clk
0:00:09.2]} 55... Bxa5 {[%clk 0:00:20.7]} 56. d4 {[%clk 0:00:08.5]} 56... h3
{[%clk 0:00:20.4]} 57. Rh7 {[%clk 0:00:07.9]} 57... Be1 {[%clk 0:00:20.2]} 58.
d5 {[%clk 0:00:05.3]} 58... Bh4 {[%clk 0:00:20.4]} 59. d6 {[%clk 0:00:05.4]}
59... h2 {[%clk 0:00:20.6]} 60. Rxh4+ {[%clk 0:00:02.6]} 60... Kxh4 {[%clk
0:00:20.1]} 61. d7 {[%clk 0:00:03.5]} 61... h1=Q {[%clk 0:00:19.9]} 62. d8=Q+
{[%clk 0:00:04.4]} 1/2-1/2

[Event "*** Titled Tuesday Blitz"]
[Site "Chess.com"]
[Date "2021.02.16"]
[Round "4"]
[White "lukas_111111"]
[Black "starplatinum2030"]
[Result "1-0"]
[WhiteElo "2590"]
[BlackElo "2154"]
[TimeControl "180+1"]
[EndTime "10:43:15 PST"]
[Termination "lukas_111111 won by checkmate"]

1. d4 {[%clk 0:03:00.9]} 1... d5 {[%clk 0:02:59.5]} 2. c4 {[%clk 0:02:59.3]}
2... dxc4 {[%clk 0:02:59.4]} 3. e4 {[%clk 0:02:58.7]} 3... Nc6 {[%clk
0:02:58.2]} 4. Nf3 {[%clk 0:02:56.5]} 4... Bg4 {[%clk 0:02:57.4]} 5. Bxc4 {[%clk
0:02:47.5]} 5... Bxf3 {[%clk 0:02:50.8]} 6. Qxf3 {[%clk 0:02:45.5]} 6... e6
{[%clk 0:02:31.5]} 7. d5 {[%clk 0:01:56]} 7... Ne5 {[%clk 0:02:25]} 8. Qb3
{[%clk 0:01:55.1]} 8... Nxc4 {[%clk 0:02:18.6]} 9. Qxc4 {[%clk 0:01:55.1]} 9...
exd5 {[%clk 0:02:09.8]} 10. exd5 {[%clk 0:01:56]} 10... Nf6 {[%clk 0:02:05.1]}
11. Nc3 {[%clk 0:01:55.9]} 11... Qe7+ {[%clk 0:01:55.8]} 12. Be3 {[%clk
0:01:53.1]} 12... Qb4 {[%clk 0:01:44.5]} 13. Qe2 {[%clk 0:01:30.2]} 13... Be7
{[%clk 0:01:37.8]} 14. O-O {[%clk 0:01:25.8]} 14... O-O {[%clk 0:01:33.1]} 15.
Rad1 {[%clk 0:01:21]} 15... Rad8 {[%clk 0:01:27.6]} 16. Rd4 {[%clk 0:01:14.2]}
16... Qd6 {[%clk 0:01:21.3]} 17. Rfd1 {[%clk 0:01:11]} 17... a6 {[%clk
0:01:12.5]} 18. Rc4 {[%clk 0:01:03.7]} 18... Qe5 {[%clk 0:01:09.5]} 19. Qf3
{[%clk 0:00:56.3]} 19... Bd6 {[%clk 0:00:57.6]} 20. g3 {[%clk 0:00:49.5]} 20...
Rfe8 {[%clk 0:00:44.5]} 21. Bd4 {[%clk 0:00:48.4]} 21... Qg5 {[%clk 0:00:38.7]}
22. Bxf6 {[%clk 0:00:47.2]} 22... Qxf6 {[%clk 0:00:39.4]} 23. Qxf6 {[%clk
0:00:42.4]} 23... gxf6 {[%clk 0:00:40]} 24. Ne4 {[%clk 0:00:42.9]} 24... Be5
{[%clk 0:00:35.5]} 25. Rd2 {[%clk 0:00:33]} 25... f5 {[%clk 0:00:31.7]} 26. Nc5
{[%clk 0:00:30.7]} 26... c6 {[%clk 0:00:18.3]} 27. Nxb7 {[%clk 0:00:26]} 27...
Rxd5 {[%clk 0:00:17.9]} 28. Re2 {[%clk 0:00:26]} 28... Rb8 {[%clk 0:00:16.3]}
29. Nc5 {[%clk 0:00:20.1]} 29... Rxb2 {[%clk 0:00:14.4]} 30. Rxb2 {[%clk
0:00:18.8]} 30... Bxb2 {[%clk 0:00:15.3]} 31. Nb3 {[%clk 0:00:18.4]} 31... Rd1+
{[%clk 0:00:07.8]} 32. Kg2 {[%clk 0:00:18.1]} 32... Rd6 {[%clk 0:00:07.3]} 33.
Rc5 {[%clk 0:00:17.5]} 33... f4 {[%clk 0:00:06.1]} 34. gxf4 {[%clk 0:00:16.1]}
34... Ba3 {[%clk 0:00:06.3]} 35. Ra5 {[%clk 0:00:15.1]} 35... Bb4 {[%clk
0:00:04.6]} 36. Rxa6 {[%clk 0:00:14.6]} 36... Rg6+ {[%clk 0:00:04.4]} 37. Kf3
{[%clk 0:00:13.7]} 37... c5 {[%clk 0:00:04.6]} 38. Rxg6+ {[%clk 0:00:11.5]}
38... fxg6 {[%clk 0:00:05.5]} 39. Ke4 {[%clk 0:00:10.8]} 39... Kf7 {[%clk
0:00:04.1]} 40. Kd5 {[%clk 0:00:10.2]} 40... Be1 {[%clk 0:00:03.3]} 41. f3
{[%clk 0:00:09.7]} 41... Bf2 {[%clk 0:00:01.6]} 42. Nxc5 {[%clk 0:00:09.6]}
42... Kf6 {[%clk 0:00:02.2]} 43. Ne4+ {[%clk 0:00:08.9]} 43... Kf5 {[%clk
0:00:02.9]} 44. Nxf2 {[%clk 0:00:09.8]} 44... Kxf4 {[%clk 0:00:02.6]} 45. a4
{[%clk 0:00:09.9]} 45... Kxf3 {[%clk 0:00:03.2]} 46. Ne4 {[%clk 0:00:10.1]}
46... h5 {[%clk 0:00:02.5]} 47. a5 {[%clk 0:00:09.6]} 47... Kg2 {[%clk
0:00:02.9]} 48. h4 {[%clk 0:00:09]} 48... Kh2 {[%clk 0:00:03.4]} 49. a6 {[%clk
0:00:09.1]} 49... Kh3 {[%clk 0:00:03.8]} 50. a7 {[%clk 0:00:08.9]} 50... Kxh4
{[%clk 0:00:04.7]} 51. a8=Q {[%clk 0:00:09.1]} 51... g5 {[%clk 0:00:05.4]} 52.
Qd8 {[%clk 0:00:08.7]} 52... Kh3 {[%clk 0:00:04.3]} 53. Qxg5 {[%clk 0:00:09]}
53... h4 {[%clk 0:00:04.9]} 54. Nf2+ {[%clk 0:00:08.5]} 54... Kh2 {[%clk
0:00:04.1]} 55. Qxh4+ {[%clk 0:00:08.5]} 55... Kg2 {[%clk 0:00:04.8]} 56. Ne4
{[%clk 0:00:08.1]} 56... Kf3 {[%clk 0:00:05.6]} 57. Qf6+ {[%clk 0:00:08.2]}
57... Ke2 {[%clk 0:00:06.5]} 58. Qf2+ {[%clk 0:00:07.2]} 58... Kd1 {[%clk
0:00:05.8]} 59. Qd2# {[%clk 0:00:07.2]} 1-0

[Event "*** Titled Tuesday Blitz"]
[Site "Chess.com"]
[Date "2021.02.16"]
[Round "4"]
[White "ViktoriyaTarasova"]
[Black "bylavochka"]
[Result "0-1"]
[WhiteElo "2273"]
[BlackElo "2085"]
[TimeControl "180+1"]
[EndTime "10:43:15 PST"]
[Termination "bylavochka won by checkmate"]

1. d4 {[%clk 0:03:00.9]} 1... Nf6 {[%clk 0:02:59.8]} 2. c4 {[%clk 0:03:00.9]}
2... g6 {[%clk 0:03:00.3]} 3. Nc3 {[%clk 0:03:01.2]} 3... Bg7 {[%clk 0:03:01.2]}
4. e4 {[%clk 0:03:01.1]} 4... O-O {[%clk 0:03:02.1]} 5. h3 {[%clk 0:03:00.8]}
5... d6 {[%clk 0:03:01.4]} 6. Be3 {[%clk 0:03:00.5]} 6... e5 {[%clk 0:03:01]} 7.
d5 {[%clk 0:03:00.2]} 7... c6 {[%clk 0:03:01]} 8. Bd3 {[%clk 0:02:59.5]} 8...
cxd5 {[%clk 0:02:59.9]} 9. cxd5 {[%clk 0:02:59.9]} 9... a6 {[%clk 0:02:59.8]}
10. g4 {[%clk 0:02:58.4]} 10... b5 {[%clk 0:02:58.9]} 11. a3 {[%clk 0:02:58.5]}
11... Nbd7 {[%clk 0:02:58]} 12. Nf3 {[%clk 0:02:57.4]} 12... Qa5 {[%clk
0:02:46.7]} 13. Nd2 {[%clk 0:02:52.6]} 13... h5 {[%clk 0:02:44]} 14. Be2 {[%clk
0:02:46.1]} 14... Nc5 {[%clk 0:02:27.8]} 15. b4 {[%clk 0:02:42.7]} 15... Nfxe4
{[%clk 0:02:03.7]} 16. bxa5 {[%clk 0:02:36.3]} 16... Nxc3 {[%clk 0:02:02.5]} 17.
Qc2 {[%clk 0:02:36.4]} 17... e4 {[%clk 0:01:56.1]} 18. O-O {[%clk 0:02:11.5]}
18... Nxe2+ {[%clk 0:01:52]} 19. Kg2 {[%clk 0:02:10.2]} 19... hxg4 {[%clk
0:01:23.8]} 20. Rab1 {[%clk 0:01:58.2]} 20... gxh3+ {[%clk 0:01:22.1]} 21. Kh1
{[%clk 0:01:58.8]} 21... Nc3 {[%clk 0:00:45.5]} 22. Rbe1 {[%clk 0:01:39.3]}
22... Nd3 {[%clk 0:00:30.6]} 23. Ra1 {[%clk 0:01:39.1]} 23... Bg4 {[%clk
0:00:23.3]} 24. f3 {[%clk 0:01:34.9]} 24... Bf5 {[%clk 0:00:08.7]} 25. fxe4
{[%clk 0:01:33.2]} 25... Nxe4 {[%clk 0:00:05.7]} 26. Rxf5 {[%clk 0:01:02.5]}
26... Ng3+ {[%clk 0:00:05.3]} 27. Kh2 {[%clk 0:01:00.4]} 27... Nxf5 {[%clk
0:00:06.2]} 28. Qxd3 {[%clk 0:00:55.5]} 28... Bxa1 {[%clk 0:00:05.7]} 29. Kxh3
{[%clk 0:00:51.8]} 29... Be5 {[%clk 0:00:05.7]} 30. Ne4 {[%clk 0:00:50.2]} 30...
Kg7 {[%clk 0:00:05.7]} 31. Bg5 {[%clk 0:00:47.8]} 31... Rh8+ {[%clk 0:00:05.7]}
32. Kg2 {[%clk 0:00:48.3]} 32... Rh2+ {[%clk 0:00:05.6]} 33. Kf1 {[%clk
0:00:42.2]} 33... Rah8 {[%clk 0:00:05.1]} 34. Nf2 {[%clk 0:00:37.4]} 34... Ng3+
{[%clk 0:00:03.7]} 35. Ke1 {[%clk 0:00:36.4]} 35... Rxf2 {[%clk 0:00:03.3]} 36.
Kxf2 {[%clk 0:00:35.3]} 36... Rh2+ {[%clk 0:00:03.5]} 37. Ke1 {[%clk 0:00:31.2]}
37... Nf5 {[%clk 0:00:02.8]} 38. Bd2 {[%clk 0:00:24.8]} 38... Rh1+ {[%clk
0:00:02.2]} 39. Ke2 {[%clk 0:00:24.6]} 39... Ng3+ {[%clk 0:00:02.4]} 40. Kf3
{[%clk 0:00:22.4]} 40... Rf1+ {[%clk 0:00:02]} 41. Kg2 {[%clk 0:00:22.4]} 41...
Rd1 {[%clk 0:00:01.9]} 42. Qc2 {[%clk 0:00:18.4]} 42... Ra1 {[%clk 0:00:01.2]}
43. Bc3 {[%clk 0:00:17.8]} 43... Rxa3 {[%clk 0:00:01.5]} 44. Bxe5+ {[%clk
0:00:17.1]} 44... dxe5 {[%clk 0:00:02.4]} 45. Qb2 {[%clk 0:00:17.4]} 45... Re3
{[%clk 0:00:01.9]} 46. Qa1 {[%clk 0:00:15.3]} 46... Nf5 {[%clk 0:00:02.6]} 47.
Kf2 {[%clk 0:00:14.1]} 47... Rd3 {[%clk 0:00:03]} 48. Qa2 {[%clk 0:00:12.8]}
48... e4 {[%clk 0:00:02.1]} 49. d6 {[%clk 0:00:12.1]} 49... Rxd6 {[%clk
0:00:01.9]} 50. Qb2+ {[%clk 0:00:11.5]} 50... f6 {[%clk 0:00:02.2]} 51. Qb4
{[%clk 0:00:11]} 51... e3+ {[%clk 0:00:02.6]} 52. Ke1 {[%clk 0:00:10.1]} 52...
Rd7 {[%clk 0:00:02.3]} 53. Qe4 {[%clk 0:00:09.3]} 53... Re7 {[%clk 0:00:02.3]}
54. Qc6 {[%clk 0:00:09.2]} 54... e2 {[%clk 0:00:02.1]} 55. Qc5 {[%clk
0:00:09.8]} 55... Kf7 {[%clk 0:00:01.6]} 56. Qd5+ {[%clk 0:00:09.8]} 56... Kg7
{[%clk 0:00:02]} 57. Qc5 {[%clk 0:00:10.3]} 57... Re5 {[%clk 0:00:01.7]} 58.
Qc7+ {[%clk 0:00:09.8]} 58... Kh6 {[%clk 0:00:02.1]} 59. Qb8 {[%clk 0:00:09]}
59... Nd4 {[%clk 0:00:01.3]} 60. Qh8+ {[%clk 0:00:09.2]} 60... Kg5 {[%clk
0:00:01.4]} 61. Qh2 {[%clk 0:00:08.7]} 61... Nf3+ {[%clk 0:00:01.6]} 62. Kf2
{[%clk 0:00:08.9]} 62... e1=Q+ {[%clk 0:00:02.1]} 63. Kg2 {[%clk 0:00:08.8]}
63... Re2+ {[%clk 0:00:02.2]} 64. Kh3 {[%clk 0:00:09.3]} 64... Rxh2# {[%clk
0:00:02.9]} 0-1